[Event "70th RUS-ch Women Higher League 2020"]
[Site "Sochi"]
[Date "2020.10.16"]
[Round "8.15"]
[White "Mironenko, Galina"]
[Black "Ovod, Evgenija"]
[Result "0-1"]
[ECO "C50"]
[WhiteElo "2061"]
[BlackElo "2372"]
[Annotator "ChessBase"]
[PlyCount "96"]
[EventDate "2020.10.08"]
[EventType "swiss"]
[EventCountry "RUS"]
[SourceTitle "playchess.com"]
[Source "ChessBase"]
[SourceQuality "1"]
[TimeControl "40/5400+30:1800+30"]

1. e4 {[%emt 0:00:00]} e5 {[%emt 0:00:00]} 2. Nf3 {[%emt 0:00:00]} Nc6 {[%emt 0:00:05]} 3. Bc4 {[%emt 0:00:15]} Bc5 {[%emt 0:00:00]} 4. O-O {[%emt 0:00:00]} Nf6 {[%emt 0:00:00]} 5. d3 {[%emt 0:00:31]} d6 {[%emt 0:00:15]} 6. c3 {[%emt 0:00:22]} a6 {[%emt 0:00:30]} 7. a4 {[%emt 0:00:30]} Ba7 {[%emt 0:00:30]} 8. Na3 {[%emt 0:00:01]} O-O {[%emt 0:05:20]} 9. Re1 {[%emt 0:07:42]} Ne7 {[%emt 0:11:18]} 10. Nc2 {[%emt 0:03:27]} c6 {[%emt 0:01:02]} 11. Ba2 {[%emt 0:08:06]} Ng6 {[%emt 0:00:35]} 12. d4 {[%emt 0:07:37]} h6 {[%emt 0:05:47]} 13. b4 {[%emt 0:13:00]} d5 {[%emt 0:05:00]} 14. exd5 {[%emt 0:10:31]} e4 {[%emt 0:00:05]} 15. Ne5 {[%emt 0:00:40]} cxd5 {[%emt 0:00:07]} 16. Nxg6 {[%emt 0:04:17]} fxg6 {[%emt 0:00:04]} 17. Ne3 {[%emt 0:01:52]} Be6 {[%emt 0:03:46]} 18. b5 {[%emt 0:04:59]} axb5 {[%emt 0:02:44]} 19. axb5 {[%emt 0:05:07]} Qd6 {[%emt 0:17:57]} 20. Bb3 {[%emt 0:05:37]} Bb8 {[%emt 0:06:51]} 21. Rxa8 {[%emt 0:00:36]} Qxh2+ {[%emt 0:00:04]} 22. Kf1 {[%emt 0:00:15]} Ng4 {[%emt 0:00:06]} 23. Nxg4 {[%emt 0:14:52]} Qh1+ {[%emt 0:00:31]} 24. Ke2 {[%emt 0:00:21]} Bxg4+ {[%emt 0:00:14]} 25. Kd2 {[%emt 0:01:11]} Qxg2 {[%emt 0:16:51]} 26. Bxd5+ {[%emt 0:08:09]} Kh7 {[%emt 0:00:04]} 27. Bxe4 {[%emt 0:01:07]} Qxf2+ {[%emt 0:02:18]} 28. Re2 {[%emt 0:01:03]} Bf4+ {[%emt 0:02:54]} 29. Kd3 {[%emt 0:00:30]} Qg3+ {[%emt 0:02:24]} 30. Re3 {[%emt 0:01:37]} Bxe3 {[%emt 0:00:59]} 31. Bxe3 {[%emt 0:00:36]} Bxd1 {[%emt 0:02:18]} 32. Rxf8 {[%emt 0:00:19]} Bc2+ {[%emt 0:00:59]} 33. Kxc2 {[%emt 0:00:13]} Qxe3 {[%emt 0:00:06]} 34. Bd3 {[%emt 0:00:35]} h5 {[%emt 0:03:00]} 35. Rf7 {[%emt 0:00:26]} h4 {[%emt 0:01:35]} 36. Rxb7 {[%emt 0:00:24]} Qf2+ {[%emt 0:00:45]} 37. Kb3 {[%emt 0:01:03]} Qf3 {[%emt 0:00:18]} 38. Bxg6+ {[%emt 0:00:31]} Kxg6 {[%emt 0:00:11]} 39. Rb6+ {[%emt 0:00:06]} Kh7 {[%emt 0:01:12]} 40. Rb8 {[%emt 0:00:00]} h3 {[%emt 0:00:00]} 41. b6 {[%emt 0:00:50]} h2 {[%emt 0:02:24]} 42. b7 {[%emt 0:00:12]} Qf7+ {[%emt 0:00:38]} 43. d5 {[%emt 0:00:49]} Qc7 {[%emt 0:00:56]} 44. Rf8 {[%emt 0:00:55]} Qxb7+ {[%emt 0:00:07]} 45. Kc4 {[%emt 0:00:08]} h1=Q {[%emt 0:00:10]} 46. Rf5 {[%emt 0:00:48]} Qe4+ {[%emt 0:00:12]} 47. Kc5 {[%emt 0:00:05]} Qc7+ {[%emt 0:00:24]} 48. Kb5 {[%emt 0:00:05]} Qec4# {[%emt 0:00:11]} 0-1

[Event "70th RUS-ch Women Higher League 2020"]
[Site "Sochi"]
[Date "2020.10.16"]
[Round "8.16"]
[White "Mukhina, Jana"]
[Black "Gorovenko, Darya"]
[Result "1/2-1/2"]
[ECO "B06"]
[WhiteElo "2025"]
[BlackElo "2120"]
[Annotator "ChessBase"]
[PlyCount "62"]
[EventDate "2020.10.08"]
[EventType "swiss"]
[EventCountry "RUS"]
[SourceTitle "playchess.com"]
[Source "ChessBase"]
[SourceQuality "1"]
[TimeControl "40/5400+30:1800+30"]

1. d4 {[%emt 0:00:38]} g6 {[%emt 0:01:11]} 2. e4 {[%emt 0:00:27]} Bg7 {[%emt 0:00:07]} 3. Nc3 {[%emt 0:00:32]} d6 {[%emt 0:00:09]} 4. Be3 {[%emt 0:00:44]} c6 {[%emt 0:00:21]} 5. h3 {[%emt 0:00:54]} b5 {[%emt 0:00:48]} 6. a3 {[%emt 0:01:18]} a6 {[%emt 0:00:07]} 7. f4 {[%emt 0:02:25]} Nd7 {[%emt 0:00:55]} 8. Nf3 {[%emt 0:01:29]} Bb7 {[%emt 0:00:23]} 9. Qd2 {[%emt 0:09:28]} Qc7 {[%emt 0:04:54]} 10. Be2 {[%emt 0:07:07]} O-O-O {[%emt 0:05:49]} 11. Ng5 {[%emt 0:06:45]} Nh6 {[%emt 0:00:40]} 12. O-O {[%emt 0:06:18]} Nf8 {[%emt 0:07:27]} 13. Nf3 {[%emt 0:02:59]} f5 {[%emt 0:02:33]} 14. e5 {[%emt 0:06:45]} dxe5 {[%emt 0:01:45]} 15. fxe5 {[%emt 0:01:11]} Nf7 {[%emt 0:00:05]} 16. Qe1 {[%emt 0:04:36]} Ne6 {[%emt 0:00:11]} 17. a4 {[%emt 0:01:01]} f4 {[%emt 0:07:39]} 18. Bf2 {[%emt 0:03:28]} Nfg5 {[%emt 0:01:33]} 19. d5 {[%emt 0:06:46]} cxd5 {[%emt 0:02:16]} 20. Nxg5 {[%emt 0:05:46]} Nxg5 {[%emt 0:00:05]} 21. axb5 {[%emt 0:00:17]} d4 {[%emt 0:01:53]} 22. bxa6 {[%emt 0:00:28]} Bxg2 {[%emt 0:20:27]} 23. Nb5 {[%emt 0:00:38]} Qd7 {[%emt 0:09:14]} 24. Bxd4 {[%emt 0:10:05]} Qxh3 {[%emt 0:01:27]} 25. Qa5 {[%emt 0:15:35]} Qh1+ {[%emt 0:14:59]} 26. Kf2 {[%emt 0:00:01]} Qh4+ {[%emt 0:00:07]} 27. Kxg2 {[%emt 0:00:37]} Qh3+ {[%emt 0:00:32]} 28. Kg1 {[%emt 0:00:06]} Qg3+ {[%emt 0:00:09]} 29. Kh1 {[%emt 0:00:02]} Qh3+ {[%emt 0:00:07]} 30. Kg1 {[%emt 0:00:04]} Qg3+ {[%emt 0:00:05]} 31. Kh1 {[%emt 0:00:10]} Qh3+ {[%emt 0:00:18]} 1/2-1/2

[Event "70th RUS-ch Women Higher League 2020"]
[Site "Sochi"]
[Date "2020.10.16"]
[Round "8.17"]
[White "Kochukova, Anna"]
[Black "Salakhova, Adelya"]
[Result "1-0"]
[ECO "B07"]
[WhiteElo "2093"]
[BlackElo "1885"]
[Annotator "NA"]
[PlyCount "161"]
[EventDate "2020.10.08"]
[EventType "swiss"]
[EventCountry "RUS"]
[SourceTitle "playchess.com"]
[Source "ChessBase"]
[SourceQuality "1"]
[TimeControl "40/5400+30:1800+30"]

1. e4 {[%emt 0:00:00]} d6 {[%emt 0:00:00]} 2. d4 {[%emt 0:00:00]} Nf6 {[%emt 0:00:00]} 3. Nc3 {[%emt 0:00:26]} Nbd7 {[%emt 0:00:23]} 4. Be3 {[%emt 0:02:50]} c6 {[%emt 0:00:19]} 5. f3 {[%emt 0:02:37]} b5 {[%emt 0:02:09]} 6. Qd2 {[%emt 0:00:58]} Bb7 {[%emt 0:00:54]} 7. Nge2 {[%emt 0:03:08]} Nb6 {[%emt 0:03:06]} 8. b3 {[%emt 0:00:48]} g6 {[%emt 0:06:27]} 9. Ng3 {[%emt 0:11:20]} Bg7 $14 {[%emt 0:02:54]} 10. Bh6 {[%emt 0:03:11]} O-O {[%emt 0:08:08]} 11. h4 {[%emt 0:03:58]} Bh8 {[%emt 0:04:38]} 12. Bxf8 {[%emt 0:03:47]} Qxf8 {[%emt 0:00:53]} 13. h5 {[%emt 0:00:47]} b4 {[%emt 0:04:43]} 14. Nce2 {[%emt 0:00:46]} c5 {[%emt 0:03:25]} 15. hxg6 {[%emt 0:03:55]} hxg6 {[%emt 0:00:30]} 16. Rd1 {[%emt 0:01:34]} Bg7 {[%emt 0:08:11]} 17. dxc5 {[%emt 0:10:31]} dxc5 {[%emt 0:00:16]} 18. Qg5 {[%emt 0:00:10]} Qc8 {[%emt 0:07:14]} 19. Nf4 {[%emt 0:09:38]} c4 {[%emt 0:11:31]} 20. Be2 {[%emt 0:03:44]} cxb3 {[%emt 0:08:12]} 21. cxb3 {[%emt 0:00:14]} Qc3+ {[%emt 0:01:19]} 22. Kf1 {[%emt 0:00:16]} Qc2 {[%emt 0:03:45]} 23. Nd3 {[%emt 0:09:10]} Qxa2 {[%emt 0:09:34]} 24. Qc5 {[%emt 0:03:01]} Qxb3 {[%emt 0:01:52]} 25. Qxe7 {[%emt 0:00:59]} Ba6 {[%emt 0:01:11]} 26. Qxb4 {[%emt 0:00:22]} Qe6 {[%emt 0:01:39]} 27. Nf4 {[%emt 0:03:04]} Bxe2+ {[%emt 0:00:08]} 28. Ngxe2 {[%emt 0:00:11]} Qa2 {[%emt 0:00:37]} 29. Qe7 {[%emt 0:01:24]} Re8 {[%emt 0:01:53]} 30. Qc7 {[%emt 0:01:58]} Nc4 {[%emt 0:01:30]} 31. Kf2 {[%emt 0:01:26]} Ne5 {[%emt 0:03:49]} 32. Rd8 {[%emt 0:02:50]} Qa4 {[%emt 0:01:33]} 33. Rhd1 {[%emt 0:00:15]} g5 {[%emt 0:02:22]} 34. Nh5 {[%emt 0:02:08]} Nxh5 {[%emt 0:00:37]} 35. Rxe8+ {[%emt 0:00:01]} Kh7 {[%emt 0:00:10]} 36. Red8 {[%emt 0:02:49]} Qa2 {[%emt 0:00:57]} 37. Rh1 {[%emt 0:01:11]} Kg6 {[%emt 0:00:08]} 38. Qd6+ {[%emt 0:00:37]} f6 {[%emt 0:00:20]} 39. Qd5 {[%emt 0:03:21]} Qb2 {[%emt 0:00:07]} 40. Qd4 {[%emt 0:00:00]} Qc2 {[%emt 0:00:00]} 41. Qd2 {[%emt 0:13:09]} Qc5+ {[%emt 0:02:12]} 42. Qe3 {[%emt 0:00:27]} Qa5 {[%emt 0:02:28]} 43. Rd5 {[%emt 0:00:29]} Qa2 {[%emt 0:00:35]} 44. Rhd1 {[%emt 0:08:50]} Nc4 {[%emt 0:06:53]} 45. Qc3 {[%emt 0:01:09]} Bf8 {[%emt 0:05:46]} 46. Ra1 {[%emt 0:01:29]} Qb2 {[%emt 0:01:30]} 47. Qxb2 {[%emt 0:00:13]} Nxb2 {[%emt 0:00:03]} 48. Ke3 {[%emt 0:03:02]} a5 {[%emt 0:00:19]} 49. Kd4 {[%emt 0:00:22]} a4 {[%emt 0:00:42]} 50. Kc3 {[%emt 0:01:16]} a3 {[%emt 0:01:05]} 51. Kb3 {[%emt 0:00:05]} Ng7 {[%emt 0:01:02]} 52. Nd4 {[%emt 0:02:36]} Nd3 {[%emt 0:00:35]} 53. Nb5 {[%emt 0:00:48]} Nc5+ {[%emt 0:02:27]} 54. Kc4 {[%emt 0:00:17]} Nge6 {[%emt 0:00:12]} 55. Nxa3 {[%emt 0:00:31]} Na4 {[%emt 0:00:39]} 56. Ra5 {[%emt 0:00:58]} Nec5 {[%emt 0:00:29]} 57. Nc2 {[%emt 0:01:17]} Nb2+ {[%emt 0:01:20]} 58. Kc3 {[%emt 0:00:10]} Nbd3 {[%emt 0:00:37]} 59. Ne3 {[%emt 0:01:28]} Nf4 {[%emt 0:00:21]} 60. R1a2 {[%emt 0:01:28]} Ncd3 {[%emt 0:01:02]} 61. Nd5 {[%emt 0:00:46]} Bd6 {[%emt 0:01:26]} 62. Nxf4+ {[%emt 0:00:14]} Nxf4 {[%emt 0:00:06]} 63. Rd2 {[%emt 0:01:22]} Bc7 {[%emt 0:00:19]} 64. Rb5 {[%emt 0:00:31]} g4 {[%emt 0:00:28]} 65. Ra2 {[%emt 0:02:14]} gxf3 {[%emt 0:00:15]} 66. gxf3 {[%emt 0:00:01]} Be5+ {[%emt 0:00:30]} 67. Kd2 {[%emt 0:00:33]} Kg5 {[%emt 0:00:11]} 68. Ke3 {[%emt 0:00:17]} Kh4 {[%emt 0:00:35]} 69. Raa5 {[%emt 0:00:57]} Ng6 {[%emt 0:00:24]} 70. Rxe5 {[%emt 0:01:29]} fxe5 {[%emt 0:00:35]} 71. Rb5 {[%emt 0:01:14]} Kg3 {[%emt 0:02:21]} 72. Ra5 {[%emt 0:00:25]} Kh4 {[%emt 0:00:37]} 73. Ra6 {[%emt 0:00:36]} Kg5 {[%emt 0:00:40]} 74. Re6 {[%emt 0:00:09]} Kh5 {[%emt 0:00:23]} 75. Rf6 {[%emt 0:00:41]} Nh4 {[%emt 0:00:33]} 76. Re6 {[%emt 0:00:47]} Ng6 {[%emt 0:00:10]} 77. Kf2 {[%emt 0:00:14]} Kg5 {[%emt 0:00:21]} 78. Kg3 {[%emt 0:00:04]} Kh5 {[%emt 0:00:11]} 79. Rf6 {[%emt 0:00:22]} Nh4 {[%emt 0:02:44]} 80. f4 {[%emt 0:01:49]} exf4+ {[%emt 0:00:11]} 81. Kxf4 {[%emt 0:00:12]} 1-0

[Event "70th RUS-ch Women Higher League 2020"]
[Site "Sochi"]
[Date "2020.10.16"]
[Round "8.18"]
[White "Makarova, Olga"]
[Black "Berezina, Mariya"]
[Result "1/2-1/2"]
[ECO "A14"]
[WhiteElo "1875"]
[BlackElo "1982"]
[Annotator "ChessBase"]
[PlyCount "80"]
[EventDate "2020.10.08"]
[EventType "swiss"]
[EventCountry "RUS"]
[SourceTitle "playchess.com"]
[Source "ChessBase"]
[SourceQuality "1"]
[TimeControl "40/5400+30:1800+30"]

1. c4 {[%emt 0:01:06]} e6 {[%emt 0:00:00]} 2. Nf3 {[%emt 0:00:05]} d5 {[%emt 0:00:00]} 3. g3 {[%emt 0:01:19]} Nf6 {[%emt 0:00:28]} 4. Bg2 {[%emt 0:00:08]} Be7 {[%emt 0:00:30]} 5. O-O {[%emt 0:00:10]} O-O {[%emt 0:00:30]} 6. d4 {[%emt 0:00:11]} dxc4 {[%emt 0:02:09]} 7. Ne5 {[%emt 0:02:51]} Nc6 {[%emt 0:02:06]} 8. Bxc6 {[%emt 0:02:36]} bxc6 {[%emt 0:00:07]} 9. Nxc6 {[%emt 0:00:04]} Qe8 {[%emt 0:00:09]} 10. Nxe7+ {[%emt 0:00:05]} Qxe7 {[%emt 0:00:04]} 11. Qa4 {[%emt 0:00:11]} e5 {[%emt 0:03:02]} 12. dxe5 {[%emt 0:01:02]} Qxe5 {[%emt 0:00:21]} 13. Nc3 {[%emt 0:00:11]} Ne4 {[%emt 0:01:06]} 14. Qxc4 {[%emt 0:01:00]} Nxc3 {[%emt 0:00:52]} 15. bxc3 {[%emt 0:00:15]} Be6 {[%emt 0:01:04]} 16. Bf4 {[%emt 0:02:44]} Bxc4 {[%emt 0:01:24]} 17. Bxe5 {[%emt 0:00:07]} Rfe8 {[%emt 0:00:38]} 18. Bxc7 {[%emt 0:00:32]} Rxe2 {[%emt 0:00:09]} 19. a4 {[%emt 0:00:47]} Rc8 {[%emt 0:00:41]} 20. Bf4 {[%emt 0:00:44]} f6 {[%emt 0:01:18]} 21. Rfe1 {[%emt 0:00:40]} Rxe1+ {[%emt 0:01:03]} 22. Rxe1 {[%emt 0:00:07]} Bb3 {[%emt 0:00:37]} 23. a5 {[%emt 0:01:59]} Rxc3 {[%emt 0:00:17]} 24. Rc1 {[%emt 0:00:13]} Rxc1+ {[%emt 0:00:08]} 25. Bxc1 {[%emt 0:00:04]} a6 {[%emt 0:00:14]} 26. f4 {[%emt 0:00:14]} f5 {[%emt 0:00:10]} 27. Kf2 {[%emt 0:00:06]} g6 {[%emt 0:00:13]} 28. Ke3 {[%emt 0:00:06]} Bc4 {[%emt 0:00:14]} 29. Kd4 {[%emt 0:00:11]} Bb5 {[%emt 0:00:06]} 30. Ke5 {[%emt 0:00:05]} Kf7 {[%emt 0:00:05]} 31. Ba3 {[%emt 0:00:10]} h5 {[%emt 0:00:11]} 32. h3 {[%emt 0:00:09]} Bf1 {[%emt 0:00:10]} 33. h4 {[%emt 0:00:04]} Bb5 {[%emt 0:00:06]} 34. Bd6 {[%emt 0:00:12]} Bf1 {[%emt 0:00:08]} 35. Bc7 {[%emt 0:00:10]} Bb5 {[%emt 0:00:06]} 36. Bd8 {[%emt 0:00:04]} Be2 {[%emt 0:00:06]} 37. Bb6 {[%emt 0:00:06]} Bb5 {[%emt 0:00:04]} 38. Kd6 {[%emt 0:00:05]} Be2 {[%emt 0:00:06]} 39. Bd8 {[%emt 0:00:06]} Bb5 {[%emt 0:00:04]} 40. Ke5 {[%emt 0:00:00]} Be2 {[%emt 0:00:00]} 1/2-1/2

[Event "70th RUS-ch Women Higher League 2020"]
[Site "Sochi"]
[Date "2020.10.17"]
[Round "9.12"]
[White "Bykova, Anastasia"]
[Black "Nasyrova, Ekaterina"]
[Result "0-1"]
[ECO "C65"]
[WhiteElo "2215"]
[BlackElo "2171"]
[Annotator "ChessBase"]
[PlyCount "106"]
[EventDate "2020.10.08"]
[EventType "swiss"]
[EventCountry "RUS"]
[SourceTitle "playchess.com"]
[Source "ChessBase"]
[SourceQuality "1"]
[TimeControl "40/5400+30:1800+30"]

1. e4 {[%emt 0:00:00]} e5 {[%emt 0:00:00]} 2. Nf3 {[%emt 0:00:00]} Nc6 {[%emt 0:00:00]} 3. Bb5 {[%emt 0:00:00]} Nf6 {[%emt 0:00:00]} 4. d3 {[%emt 0:00:00]} Bc5 {[%emt 0:00:07]} 5. c3 {[%emt 0:00:00]} O-O {[%emt 0:00:29]} 6. O-O {[%emt 0:00:05]} d6 {[%emt 0:00:17]} 7. Bg5 {[%emt 0:00:05]} Bb6 {[%emt 0:01:56]} 8. a4 {[%emt 0:00:24]} a6 {[%emt 0:01:55]} 9. Bxc6 {[%emt 0:00:07]} bxc6 {[%emt 0:00:10]} 10. a5 {[%emt 0:00:02]} Ba7 {[%emt 0:00:17]} 11. Nbd2 {[%emt 0:06:12]} h6 {[%emt 0:03:14]} 12. Bh4 {[%emt 0:00:22]} Qe7 {[%emt 0:04:31]} 13. Re1 {[%emt 0:04:08]} Qe6 {[%emt 0:04:22]} 14. d4 {[%emt 0:01:37]} Nd7 {[%emt 0:01:24]} 15. Qa4 {[%emt 0:02:43]} Bb7 {[%emt 0:03:13]} 16. b4 {[%emt 0:08:37]} Rae8 {[%emt 0:05:08]} 17. Bg3 {[%emt 0:01:13]} f5 {[%emt 0:01:33]} 18. exf5 {[%emt 0:00:59]} Qxf5 {[%emt 0:00:22]} 19. Qa2+ {[%emt 0:02:35]} Kh7 {[%emt 0:06:43]} 20. Nh4 {[%emt 0:01:56]} Qh5 {[%emt 0:01:56]} 21. Qc2+ {[%emt 0:00:11]} Kg8 {[%emt 0:00:16]} 22. Qd3 {[%emt 0:12:57]} Rf6 {[%emt 0:08:36]} 23. Nhf3 {[%emt 0:09:33]} exd4 {[%emt 0:05:08]} 24. cxd4 {[%emt 0:05:48]} Rxe1+ {[%emt 0:01:34]} 25. Rxe1 {[%emt 0:00:24]} Qd5 {[%emt 0:00:25]} 26. Re7 {[%emt 0:10:01]} Rf7 {[%emt 0:02:08]} 27. Re8+ {[%emt 0:00:06]} Nf8 {[%emt 0:02:54]} 28. Qc3 {[%emt 0:08:55]} Rf6 {[%emt 0:10:22]} 29. Re4 {[%emt 0:06:03]} Re6 {[%emt 0:02:51]} 30. Rg4 {[%emt 0:00:44]} Nd7 {[%emt 0:03:23]} 31. Qc2 {[%emt 0:10:01]} Nf6 {[%emt 0:02:18]} 32. Rf4 {[%emt 0:02:05]} Qb5 {[%emt 0:01:05]} 33. Qg6 {[%emt 0:02:09]} Qh5 {[%emt 0:06:58]} 34. Qb1 {[%emt 0:00:05]} Qe8 {[%emt 0:00:27]} 35. h3 {[%emt 0:00:56]} Nd5 {[%emt 0:02:31]} 36. Rg4 {[%emt 0:01:24]} Bc8 {[%emt 0:00:40]} 37. Kh2 {[%emt 0:01:43]} Qf7 {[%emt 0:02:33]} 38. Qb3 {[%emt 0:01:34]} Nf6 {[%emt 0:03:19]} 39. Rf4 {[%emt 0:01:45]} Re7 {[%emt 0:02:54]} 40. Qc2 {[%emt 0:00:00]} Qe8 {[%emt 0:00:00]} 41. Bh4 {[%emt 0:08:58]} Nd5 {[%emt 0:11:34]} 42. Bxe7 {[%emt 0:00:48]} Nxf4 {[%emt 0:00:13]} 43. Bh4 {[%emt 0:00:53]} Qg6 {[%emt 0:03:31]} 44. Qc4+ {[%emt 0:00:58]} Be6 {[%emt 0:00:34]} 45. Qf1 {[%emt 0:00:05]} Qd3 {[%emt 0:02:30]} 46. Qc1 {[%emt 0:04:31]} Bd5 {[%emt 0:01:47]} 47. Bd8 {[%emt 0:03:06]} Ne6 {[%emt 0:04:01]} 48. Qe1 {[%emt 0:02:11]} Bxd4 {[%emt 0:00:26]} 49. Bxc7 {[%emt 0:01:21]} Nxc7 {[%emt 0:00:47]} 50. Qe7 {[%emt 0:00:05]} Ne6 {[%emt 0:00:20]} 51. Qxd6 {[%emt 0:00:35]} Bxf2 {[%emt 0:00:45]} 52. b5 {[%emt 0:04:03]} Qxb5 {[%emt 0:02:03]} 53. Ne4 {[%emt 0:00:05]} Be3 {[%emt 0:00:54]} 0-1

[Event "70th RUS-ch Women Higher League 2020"]
[Site "Sochi"]
[Date "2020.10.17"]
[Round "9.15"]
[White "Miroshnik, Ekaterina"]
[Black "Mukhina, Jana"]
[Result "1-0"]
[ECO "A48"]
[WhiteElo "2104"]
[BlackElo "2025"]
[Annotator "NA"]
[PlyCount "87"]
[EventDate "2020.10.08"]
[EventType "swiss"]
[EventCountry "RUS"]
[SourceTitle "playchess.com"]
[Source "ChessBase"]
[SourceQuality "1"]
[TimeControl "40/5400+30:1800+30"]

1. d4 {[%emt 0:00:00]} Nf6 {[%emt 0:00:00]} 2. Nf3 {[%emt 0:00:00]} g6 {[%emt 0:00:00]} 3. c3 {[%emt 0:00:00]} Bg7 {[%emt 0:00:11]} 4. Bg5 {[%emt 0:00:00]} Ne4 {[%emt 0:01:28]} 5. Bf4 {[%emt 0:01:14]} O-O {[%emt 0:02:44]} 6. e3 {[%emt 0:01:27] A48: 1 d4 Nf6 2 Nf3 g6: Torre, London and Colle Systems.} b6 {[%emt 0:02:53] [#]} 7. Bd3 $146 {[%emt 0:00:54]} ({Predecessor:} 7. Nbd2 Bb7 8. Nxe4 Bxe4 9. Bd3 Bxd3 10. Qxd3 d6 11. O-O Nd7 12. Rad1 Re8 13. Qb5 {½-½ (22) Romero Perera,E (2113)-Valls Marti,A (2163) Barcelona 2011}) 7... Bb7 {[%emt 0:00:07]} 8. O-O {[%emt 0:00:06]} d6 {[%emt 0:02:08]} 9. h3 {[%emt 0:09:41]} Nd7 {[%emt 0:01:13]} 10. Qc2 {[%emt 0:01:14]} Nef6 {[%emt 0:10:09]} 11. e4 {[%emt 0:03:08]} Nh5 {[%emt 0:00:40]} 12. Bh2 {[%emt 0:01:29]} e5 {[%emt 0:00:42]} 13. Nbd2 {[%emt 0:02:03]} Qe7 {[%emt 0:02:55]} 14. Rfe1 {[%emt 0:00:37]} Rae8 {[%emt 0:00:39]} 15. a4 {[%emt 0:00:49]} Qd8 {[%emt 0:02:21]} 16. a5 {[%emt 0:00:28]} Nf4 {[%emt 0:00:11]} 17. Bf1 {[%emt 0:05:03]} g5 {[%emt 0:07:53] [#]} (17... Bh6 $14) 18. axb6 $1 {[%emt 0:00:59]} axb6 {[%emt 0:00:22] [#]} 19. Ra7 $1 {[%emt 0:06:24]} Qb8 {[%emt 0:01:24]} 20. Ra3 {[%emt 0:00:20]} (20. Rea1 $142) 20... Qd8 {[%emt 0:00:14]} 21. Bb5 {[%emt 0:06:11]} c6 {[%emt 0:00:38]} 22. Bf1 {[%emt 0:00:44]} h5 {[%emt 0:00:36]} (22... b5 $14) 23. Nc4 {[%emt 0:01:12]} Re6 {[%emt 0:01:02] [#]} 24. dxe5 {[%emt 0:04:23]} (24. Ne3 $1 $18) 24... dxe5 $18 {[%emt 0:01:54]} (24... Nxe5 $16 {was worth a try.} 25. Nfxe5 dxe5) 25. Rd1 {[%emt 0:01:48]} Qe7 {[%emt 0:05:12]} 26. Ra7 {[%emt 0:05:57]} Rb8 {[%emt 0:05:58]} 27. Ne3 {[%emt 0:00:13]} Nf8 {[%emt 0:01:36]} 28. Ba6 {[%emt 0:19:49]} g4 {[%emt 0:03:07]} 29. hxg4 {[%emt 0:02:27]} hxg4 {[%emt 0:00:01]} 30. Ne1 {[%emt 0:00:54]} Qc7 {[%emt 0:03:19]} 31. Nxg4 {[%emt 0:05:41]} Rg6 {[%emt 0:00:37]} 32. Ne3 {[%emt 0:00:18]} Qc8 {[%emt 0:00:42]} 33. Bxb7 {[%emt 0:03:59]} Rxb7 {[%emt 0:00:01]} 34. Rxb7 {[%emt 0:00:05]} Qxb7 {[%emt 0:00:05]} 35. Bxf4 {[%emt 0:00:09]} exf4 {[%emt 0:00:04]} 36. Nf5 {[%emt 0:00:02]} Ne6 {[%emt 0:01:34]} 37. Nf3 {[%emt 0:00:50]} c5 {[%emt 0:00:34]} 38. Qe2 {[%emt 0:01:01]} Ng5 {[%emt 0:00:22]} 39. Nxg5 {[%emt 0:02:51]} Rxg5 {[%emt 0:00:02]} 40. Rd8+ {[%emt 0:00:00]} Kh7 {[%emt 0:00:00]} 41. Qf3 {[%emt 0:01:28]} Qc7 {[%emt 0:02:48]} 42. Qh3+ {[%emt 0:04:43]} Kg6 {[%emt 0:00:10]} 43. Rg8 {[%emt 0:00:30]} Kf6 {[%emt 0:00:22]} 44. Nxg7 {[%emt 0:00:10]} 1-0